[Event "Titled Tuesday Blitz March 22 Early 2022"]
[White "Voit, Daria"]
[Black "Pranav, V"]
[WhiteFideId "4182146"]
[BlackFideId "25060783"]
[WhiteElo "2323"]
[BlackElo "2349"]
[Result "0-1"]
[Round "05"]
[TimeControl "180+1"]
[Date "2022.03.22"]
[WhiteClock "0:00:01"]
[BlackClock "0:00:20"]

1. Nf3 {[%clk 0:02:52]}  d5 {[%clk 0:02:58]} 2. g3 {[%clk 0:02:53]}  c6 {[%clk 0:02:56]} 3. Bg2 {[%clk 0:02:53]}  Bg4 {[%clk 0:02:57]} 4. c4 {[%clk 0:02:52]}  Nd7 {[%clk 0:02:52]} 5. cxd5 {[%clk 0:02:49]}  cxd5 {[%clk 0:02:53]} 6. O-O {[%clk 0:02:50]}  Ngf6 {[%clk 0:02:52]} 7. Nc3 {[%clk 0:02:49]}  e6 {[%clk 0:02:50]} 8. d3 {[%clk 0:02:47]}  Bd6 {[%clk 0:02:48]} 9. b3 {[%clk 0:02:34]}  O-O {[%clk 0:02:47]} 10. Nb5 {[%clk 0:02:30]}  Bb4 {[%clk 0:02:41]} 11. Bd2 {[%clk 0:02:16]}  Qa5 {[%clk 0:02:40]} 12. Bxb4 {[%clk 0:02:05]}  Qxb4 {[%clk 0:02:40]} 13. Nbd4 {[%clk 0:01:59]}  Rac8 {[%clk 0:02:40]} 14. h3 {[%clk 0:01:53]}  Bh5 {[%clk 0:02:38]} 15. g4 {[%clk 0:01:53]}  Bg6 {[%clk 0:02:37]} 16. Qd2 {[%clk 0:01:52]}  Qb6 {[%clk 0:02:34]} 17. Rfc1 {[%clk 0:01:46]}  e5 {[%clk 0:02:21]} 18. Nf5 {[%clk 0:01:44]}  Bxf5 {[%clk 0:02:21]} 19. gxf5 {[%clk 0:01:45]}  Rc6 {[%clk 0:02:10]} 20. Rxc6 {[%clk 0:01:41]}  bxc6 {[%clk 0:02:11]} 21. Rc1 {[%clk 0:01:40]}  Re8 {[%clk 0:02:10]} 22. Qc3 {[%clk 0:01:37]}  c5 {[%clk 0:02:07]} 23. Nd2 {[%clk 0:01:28]}  h6 {[%clk 0:02:01]} 24. Qb2 {[%clk 0:01:18]}  Qb4 {[%clk 0:01:52]} 25. Nb1 {[%clk 0:01:16]}  Qf4 {[%clk 0:01:49]} 26. Nc3 {[%clk 0:01:12]}  e4 {[%clk 0:01:35]} 27. dxe4 {[%clk 0:01:07]}  dxe4 {[%clk 0:01:35]} 28. Nd1 {[%clk 0:00:49]}  Qxf5 {[%clk 0:01:31]} 29. Ne3 {[%clk 0:00:50]}  Qg5 {[%clk 0:01:31]} 30. Qa3 {[%clk 0:00:47]}  Nd5 {[%clk 0:01:27]} 31. Nxd5 {[%clk 0:00:41]}  Qxd5 {[%clk 0:01:25]} 32. Qxa7 {[%clk 0:00:41]}  Ra8 {[%clk 0:01:16]} 33. Qc7 {[%clk 0:00:37]}  Rxa2 {[%clk 0:01:16]} 34. Qd8+ {[%clk 0:00:33]}  Kh7 {[%clk 0:01:15]} 35. e3 {[%clk 0:00:33]}  Qf5 {[%clk 0:01:02]} 36. Rf1 {[%clk 0:00:30]}  Ne5 {[%clk 0:00:59]} 37. Qe7 {[%clk 0:00:20]}  Ra6 {[%clk 0:00:57]} 38. Kh1 {[%clk 0:00:18]}  Nf3 {[%clk 0:00:54]} 39. Rc1 {[%clk 0:00:16]}  Rg6 {[%clk 0:00:33]} 40. Qxc5 {[%clk 0:00:14]}  Qf6 {[%clk 0:00:29]} 41. Qd5 {[%clk 0:00:11]}  Qh4 {[%clk 0:00:22]} 42. Qf5 {[%clk 0:00:04]}  Qxf2 {[%clk 0:00:20]} 43. Bxf3 {[%clk 0:00:01]}  exf3 {[%clk 0:00:20]} 0-1


[Site "https://www.chess.com"]

[Event "Titled Tuesday Blitz March 22 Early 2022"]
[White "Vusatiuk, Vladimir"]
[Black "Brodowski, Piotr"]
[WhiteFideId "14118610"]
[BlackFideId "1124480"]
[WhiteElo "2157"]
[BlackElo "2422"]
[Result "1-0"]
[Round "05"]
[TimeControl "180+1"]
[Date "2022.03.22"]
[WhiteClock "0:00:05"]
[BlackClock "0:00:59"]

1. d4 {[%clk 0:02:52]}  d6 {[%clk 0:02:59]} 2. Nf3 {[%clk 0:02:50]}  g6 {[%clk 0:02:58]} 3. e4 {[%clk 0:02:44]}  Bg7 {[%clk 0:02:57]} 4. c4 {[%clk 0:02:41]}  a6 {[%clk 0:02:56]} 5. Nc3 {[%clk 0:02:40]}  Nd7 {[%clk 0:02:55]} 6. g3 {[%clk 0:02:22]}  e5 {[%clk 0:02:54]} 7. Bg2 {[%clk 0:02:20]}  Ne7 {[%clk 0:02:54]} 8. O-O {[%clk 0:02:20]}  O-O {[%clk 0:02:54]} 9. Re1 {[%clk 0:02:09]}  b5 {[%clk 0:02:28]} 10. cxb5 {[%clk 0:02:05]}  axb5 {[%clk 0:02:28]} 11. Nxb5 {[%clk 0:02:03]}  Ba6 {[%clk 0:02:28]} 12. Nc3 {[%clk 0:01:57]}  Nc6 {[%clk 0:02:24]} 13. Be3 {[%clk 0:01:52]}  Qb8 {[%clk 0:02:19]} 14. d5 {[%clk 0:01:38]}  Nb4 {[%clk 0:02:13]} 15. Qd2 {[%clk 0:01:22]}  Nd3 {[%clk 0:02:12]} 16. Reb1 {[%clk 0:01:21]}  f5 {[%clk 0:02:08]} 17. Bf1 {[%clk 0:00:44]}  f4 {[%clk 0:02:08]} 18. Bxd3 {[%clk 0:00:39]}  fxe3 {[%clk 0:02:08]} 19. Qxe3 {[%clk 0:00:38]}  Bxd3 {[%clk 0:01:58]} 20. Qxd3 {[%clk 0:00:38]}  Bh6 {[%clk 0:01:59]} 21. b4 {[%clk 0:00:35]}  Qa7 {[%clk 0:01:54]} 22. a4 {[%clk 0:00:34]}  Rf7 {[%clk 0:01:55]} 23. Nb5 {[%clk 0:00:27]}  Qb7 {[%clk 0:01:52]} 24. Ne1 {[%clk 0:00:20]}  Raf8 {[%clk 0:01:52]} 25. f3 {[%clk 0:00:20]}  Bg5 {[%clk 0:01:38]} 26. Kg2 {[%clk 0:00:20]}  Bd8 {[%clk 0:01:39]} 27. Qc4 {[%clk 0:00:19]}  Nf6 {[%clk 0:01:35]} 28. Qc6 {[%clk 0:00:18]}  Qc8 {[%clk 0:01:35]} 29. Nxd6 {[%clk 0:00:18]}  Qb8 {[%clk 0:01:29]} 30. Nxf7 {[%clk 0:00:18]}  Rxf7 {[%clk 0:01:30]} 31. b5 {[%clk 0:00:18]}  Qa7 {[%clk 0:01:26]} 32. b6 {[%clk 0:00:13]}  cxb6 {[%clk 0:01:25]} 33. Qc8 {[%clk 0:00:11]}  Rf8 {[%clk 0:01:25]} 34. Qe6+ {[%clk 0:00:11]}  Kg7 {[%clk 0:01:25]} 35. Nd3 {[%clk 0:00:10]}  Qa5 {[%clk 0:01:25]} 36. Nb4 {[%clk 0:00:09]}  Qc5 {[%clk 0:01:25]} 37. Qc6 {[%clk 0:00:07]}  Qe3 {[%clk 0:01:25]} 38. Qc2 {[%clk 0:00:07]}  Ng4 {[%clk 0:01:17]} 39. Rf1 {[%clk 0:00:04]}  Nf6 {[%clk 0:01:13]} 40. Qd3 {[%clk 0:00:04]}  Qc5 {[%clk 0:01:12]} 41. Rab1 {[%clk 0:00:04]}  g5 {[%clk 0:01:12]} 42. Rfc1 {[%clk 0:00:03]}  Qa5 {[%clk 0:01:10]} 43. Nc6 {[%clk 0:00:04]}  Qa8 {[%clk 0:01:09]} 44. Nxd8 {[%clk 0:00:04]}  Qxd8 {[%clk 0:01:10]} 45. Rc6 {[%clk 0:00:04]}  g4 {[%clk 0:01:10]} 46. Rbxb6 {[%clk 0:00:04]}  gxf3+ {[%clk 0:01:10]} 47. Qxf3 {[%clk 0:00:05]}  Ng8 {[%clk 0:01:08]} 48. Qg4+ {[%clk 0:00:05]}  Kh8 {[%clk 0:01:09]} 49. Rb7 {[%clk 0:00:05]}  Qf6 {[%clk 0:01:07]} 50. Qe2 {[%clk 0:00:03]}  Qg5 {[%clk 0:01:06]} 51. Rcc7 {[%clk 0:00:03]}  Nf6 {[%clk 0:01:06]} 52. Qf3 {[%clk 0:00:02]}  Qg6 {[%clk 0:01:05]} 53. Qf5 {[%clk 0:00:02]}  Qg8 {[%clk 0:01:05]} 54. Re7 {[%clk 0:00:01]}  h6 {[%clk 0:00:58]} 55. Qxe5 {[%clk 0:00:02]}  Qg4 {[%clk 0:00:56]} 56. Rh7+ {[%clk 0:00:02]}  Kg8 {[%clk 0:00:56]} 57. Rbg7+ {[%clk 0:00:03]}  Qxg7 {[%clk 0:00:57]} 58. Rxg7+ {[%clk 0:00:04]}  Kxg7 {[%clk 0:00:58]} 59. d6 {[%clk 0:00:04]}  Re8 {[%clk 0:00:58]} 60. Qf4 {[%clk 0:00:04]}  Rxe4 {[%clk 0:00:58]} 61. Qxe4 {[%clk 0:00:04]}  Nxe4 {[%clk 0:00:59]} 62. d7 {[%clk 0:00:04]}  Nc5 {[%clk 0:00:58]} 63. d8=Q {[%clk 0:00:05]}  Nxa4 {[%clk 0:00:59]} 64. Qd7+ {[%clk 0:00:05]} 1-0


[Site "https://www.chess.com"]

[Event "Titled Tuesday Blitz March 22 Early 2022"]
[White "Winkels, Marcel"]
[Black "Mikhnenko, Alexander"]
[WhiteFideId "1003887"]
[BlackFideId "34143014"]
[WhiteElo "1900"]
[BlackElo "2184"]
[Result "0-1"]
[Round "05"]
[TimeControl "180+1"]
[Date "2022.03.22"]
[WhiteClock "0:00:09"]
[BlackClock "0:00:43"]

1. e4 {[%clk 0:03:00]}  c5 {[%clk 0:02:58]} 2. Nf3 {[%clk 0:02:59]}  e6 {[%clk 0:02:58]} 3. d4 {[%clk 0:02:59]}  cxd4 {[%clk 0:02:58]} 4. Nxd4 {[%clk 0:02:59]}  Qb6 {[%clk 0:02:58]} 5. Nb3 {[%clk 0:02:57]}  Nf6 {[%clk 0:02:56]} 6. Bd3 {[%clk 0:02:53]}  Nc6 {[%clk 0:02:55]} 7. O-O {[%clk 0:02:50]}  Qc7 {[%clk 0:02:50]} 8. Nc3 {[%clk 0:02:45]}  a6 {[%clk 0:02:48]} 9. a4 {[%clk 0:02:36]}  Bd6 {[%clk 0:02:46]} 10. f4 {[%clk 0:02:31]}  Bb4 {[%clk 0:02:44]} 11. e5 {[%clk 0:02:20]}  Bxc3 {[%clk 0:02:43]} 12. bxc3 {[%clk 0:02:19]}  Nd5 {[%clk 0:02:41]} 13. Ba3 {[%clk 0:02:10]}  Ne3 {[%clk 0:02:29]} 14. Qf3 {[%clk 0:01:58]}  Nxf1 {[%clk 0:02:29]} 15. Rxf1 {[%clk 0:01:56]}  g6 {[%clk 0:02:28]} 16. Bd6 {[%clk 0:01:52]}  Qd8 {[%clk 0:02:21]} 17. Nd2 {[%clk 0:01:48]}  Ne7 {[%clk 0:02:10]} 18. Ne4 {[%clk 0:01:43]}  Ng8 {[%clk 0:02:00]} 19. Ba3 {[%clk 0:01:39]}  Ne7 {[%clk 0:01:47]} 20. Nf6+ {[%clk 0:01:31]}  Kf8 {[%clk 0:01:42]} 21. Bd6 {[%clk 0:01:14]}  Kg7 {[%clk 0:01:39]} 22. Qg3 {[%clk 0:00:59]}  Nf5 {[%clk 0:01:29]} 23. Bxf5 {[%clk 0:00:43]}  exf5 {[%clk 0:01:30]} 24. Qf3 {[%clk 0:00:42]}  h6 {[%clk 0:01:26]} 25. Rd1 {[%clk 0:00:39]}  Qb6+ {[%clk 0:01:11]} 26. Kh1 {[%clk 0:00:35]}  Qc6 {[%clk 0:01:09]} 27. Qd3 {[%clk 0:00:24]}  b5 {[%clk 0:01:08]} 28. Qd4 {[%clk 0:00:17]}  Bb7 {[%clk 0:01:02]} 29. Rd2 {[%clk 0:00:13]}  Qc4 {[%clk 0:00:56]} 30. Qf2 {[%clk 0:00:11]}  bxa4 {[%clk 0:00:46]} 31. h3 {[%clk 0:00:09]}  a3 {[%clk 0:00:43]} 0-1


[Site "https://www.chess.com"]

[Event "Titled Tuesday Blitz March 22 Early 2022"]
[White "volunteers1998"]
[Black "Bettalli, Francesco"]
[BlackFideId "2816453"]
[WhiteElo "2244"]
[BlackElo "2216"]
[Result "0-1"]
[Round "05"]
[TimeControl "180+1"]
[Date "2022.03.22"]
[WhiteClock "0:00:42"]
[BlackClock "0:00:06"]

1. e4 {[%clk 0:02:59]}  e5 {[%clk 0:02:59]} 2. Nf3 {[%clk 0:02:58]}  Nf6 {[%clk 0:02:59]} 3. Nxe5 {[%clk 0:02:57]}  Nc6 {[%clk 0:02:59]} 4. Nxc6 {[%clk 0:02:51]}  dxc6 {[%clk 0:03:00]} 5. d3 {[%clk 0:02:48]}  Bc5 {[%clk 0:03:01]} 6. Be2 {[%clk 0:02:45]}  h5 {[%clk 0:03:00]} 7. c3 {[%clk 0:02:43]}  Ng4 {[%clk 0:02:59]} 8. d4 {[%clk 0:02:41]}  Qh4 {[%clk 0:02:59]} 9. g3 {[%clk 0:02:39]}  Qf6 {[%clk 0:02:54]} 10. f3 {[%clk 0:02:35]}  h4 {[%clk 0:02:54]} 11. Rf1 {[%clk 0:02:25]}  Nxh2 {[%clk 0:02:51]} 12. Rg1 {[%clk 0:02:09]}  hxg3 {[%clk 0:02:40]} 13. dxc5 {[%clk 0:02:03]}  Qh4 {[%clk 0:02:35]} 14. Be3 {[%clk 0:01:55]}  Be6 {[%clk 0:02:31]} 15. Nd2 {[%clk 0:01:48]}  O-O-O {[%clk 0:02:28]} 16. Qa4 {[%clk 0:01:44]}  Kb8 {[%clk 0:02:23]} 17. O-O-O {[%clk 0:01:41]}  f5 {[%clk 0:02:12]} 18. Nf1 {[%clk 0:01:33]}  f4 {[%clk 0:02:08]} 19. Bd4 {[%clk 0:01:30]}  Rh7 {[%clk 0:01:38]} 20. Rh1 {[%clk 0:01:16]}  g5 {[%clk 0:00:52]} 21. Bg1 {[%clk 0:01:10]}  Rxd1+ {[%clk 0:00:48]} 22. Qxd1 {[%clk 0:01:07]}  g2 {[%clk 0:00:16]} 23. Rxh2 {[%clk 0:01:04]}  gxf1=Q {[%clk 0:00:14]} 24. Qxf1 {[%clk 0:00:59]}  Qxh2 {[%clk 0:00:11]} 25. Bxh2 {[%clk 0:00:57]}  Rxh2 {[%clk 0:00:12]} 26. Kd1 {[%clk 0:00:50]}  Bh3 {[%clk 0:00:09]} 27. Qg1 {[%clk 0:00:48]}  Rg2 {[%clk 0:00:09]} 28. Qd4 {[%clk 0:00:44]}  a6 {[%clk 0:00:07]} 29. Qh8+ {[%clk 0:00:41]}  Bc8 {[%clk 0:00:06]} 30. Qh3 {[%clk 0:00:42]}  Bxh3 {[%clk 0:00:06]} 0-1


[Site "https://www.chess.com"]

[Event "Titled Tuesday Blitz March 22 Early 2022"]
[White "Aaditya Dhingra"]
[Black "Yang, Kaiqi"]
[WhiteFideId "25678191"]
[BlackFideId "8604398"]
[WhiteElo "1849"]
[BlackElo "2373"]
[Result "1/2-1/2"]
[Round "06"]
[TimeControl "180+1"]
[Date "2022.03.22"]
[WhiteClock "0:00:27"]
[BlackClock "0:00:08"]

1. Nf3 {[%clk 0:03:00]}  e6 {[%clk 0:02:58]} 2. g3 {[%clk 0:02:58]}  d5 {[%clk 0:02:56]} 3. Bg2 {[%clk 0:02:58]}  Nf6 {[%clk 0:02:56]} 4. O-O {[%clk 0:02:58]}  Be7 {[%clk 0:02:56]} 5. c4 {[%clk 0:02:58]}  d4 {[%clk 0:02:56]} 6. e3 {[%clk 0:02:57]}  c5 {[%clk 0:02:55]} 7. exd4 {[%clk 0:02:57]}  cxd4 {[%clk 0:02:56]} 8. d3 {[%clk 0:02:56]}  Nc6 {[%clk 0:02:56]} 9. Re1 {[%clk 0:02:56]}  O-O {[%clk 0:02:56]} 10. a3 {[%clk 0:02:57]}  a5 {[%clk 0:02:55]} 11. Nbd2 {[%clk 0:02:57]}  h6 {[%clk 0:02:47]} 12. h3 {[%clk 0:02:56]}  Nd7 {[%clk 0:02:41]} 13. g4 {[%clk 0:02:47]}  Nc5 {[%clk 0:02:28]} 14. Ne4 {[%clk 0:02:47]}  Nxe4 {[%clk 0:02:25]} 15. Rxe4 {[%clk 0:02:48]}  Ra6 {[%clk 0:01:53]} 16. Ne5 {[%clk 0:02:38]}  Nxe5 {[%clk 0:01:50]} 17. Rxe5 {[%clk 0:02:38]}  Bf6 {[%clk 0:01:50]} 18. Rb5 {[%clk 0:02:30]}  b6 {[%clk 0:01:44]} 19. b4 {[%clk 0:02:15]}  Bd7 {[%clk 0:01:39]} 20. bxa5 {[%clk 0:02:15]}  Bxb5 {[%clk 0:01:36]} 21. cxb5 {[%clk 0:02:16]}  Rxa5 {[%clk 0:01:36]} 22. a4 {[%clk 0:02:17]}  Bg5 {[%clk 0:01:23]} 23. Ba3 {[%clk 0:02:12]}  Be7 {[%clk 0:01:23]} 24. Bc1 {[%clk 0:02:10]}  Bb4 {[%clk 0:01:17]} 25. Bf4 {[%clk 0:01:54]}  Ra7 {[%clk 0:00:49]} 26. Qb3 {[%clk 0:01:45]}  Bc3 {[%clk 0:00:43]} 27. Ra2 {[%clk 0:01:44]}  Qf6 {[%clk 0:00:43]} 28. Bd2 {[%clk 0:01:38]}  Rc8 {[%clk 0:00:41]} 29. Rc2 {[%clk 0:01:34]}  Qe5 {[%clk 0:00:30]} 30. Kf1 {[%clk 0:01:21]}  Rc5 {[%clk 0:00:30]} 31. f4 {[%clk 0:01:12]}  Qc7 {[%clk 0:00:29]} 32. Bc1 {[%clk 0:01:10]}  Ba5 {[%clk 0:00:27]} 33. Rc4 {[%clk 0:01:05]}  Rxc4 {[%clk 0:00:22]} 34. Qxc4 {[%clk 0:01:06]}  Qxc4 {[%clk 0:00:20]} 35. dxc4 {[%clk 0:01:07]}  Bb4 {[%clk 0:00:21]} 36. Bb2 {[%clk 0:01:04]}  Bc5 {[%clk 0:00:21]} 37. Ke2 {[%clk 0:01:02]}  Rxa4 {[%clk 0:00:21]} 38. Kd3 {[%clk 0:00:54]}  Ra2 {[%clk 0:00:21]} 39. Kc2 {[%clk 0:00:54]}  d3+ {[%clk 0:00:19]} 40. Kb3 {[%clk 0:00:54]}  d2 {[%clk 0:00:14]} 41. Bf3 {[%clk 0:00:54]}  Ra7 {[%clk 0:00:14]} 42. Kc2 {[%clk 0:00:53]}  Be3 {[%clk 0:00:12]} 43. f5 {[%clk 0:00:51]}  exf5 {[%clk 0:00:13]} 44. gxf5 {[%clk 0:00:52]}  Kf8 {[%clk 0:00:12]} 45. Kd3 {[%clk 0:00:51]}  Rd7+ {[%clk 0:00:12]} 46. Kxe3 {[%clk 0:00:50]}  d1=Q {[%clk 0:00:12]} 47. Bxd1 {[%clk 0:00:51]}  Rxd1 {[%clk 0:00:12]} 48. Bd4 {[%clk 0:00:50]}  Rc1 {[%clk 0:00:12]} 49. Kd3 {[%clk 0:00:50]}  Rd1+ {[%clk 0:00:11]} 50. Kc3 {[%clk 0:00:50]}  Rf1 {[%clk 0:00:09]} 51. Bxb6 {[%clk 0:00:47]}  Ke7 {[%clk 0:00:09]} 52. Bd4 {[%clk 0:00:42]}  Rxf5 {[%clk 0:00:06]} 53. Bxg7 {[%clk 0:00:41]}  h5 {[%clk 0:00:05]} 54. Kb4 {[%clk 0:00:40]}  Kd7 {[%clk 0:00:05]} 55. c5 {[%clk 0:00:37]}  Kc7 {[%clk 0:00:05]} 56. Bd4 {[%clk 0:00:35]}  Rf4 {[%clk 0:00:04]} 57. Kc4 {[%clk 0:00:36]}  Rh4 {[%clk 0:00:04]} 58. Kd5 {[%clk 0:00:33]}  Rxh3 {[%clk 0:00:04]} 59. c6 {[%clk 0:00:33]}  Kc8 {[%clk 0:00:04]} 60. b6 {[%clk 0:00:32]}  Rb3 {[%clk 0:00:04]} 61. b7+ {[%clk 0:00:29]}  Rxb7 {[%clk 0:00:04]} 62. cxb7+ {[%clk 0:00:29]}  Kxb7 {[%clk 0:00:05]} 63. Ke5 {[%clk 0:00:29]}  h4 {[%clk 0:00:06]} 64. Bg1 {[%clk 0:00:28]}  Kc6 {[%clk 0:00:06]} 65. Kf6 {[%clk 0:00:28]}  Kd5 {[%clk 0:00:06]} 66. Kxf7 {[%clk 0:00:28]}  Ke4 {[%clk 0:00:07]} 67. Bh2 {[%clk 0:00:28]}  Kf3 {[%clk 0:00:07]} 68. Bc7 {[%clk 0:00:28]}  Kg2 {[%clk 0:00:07]} 69. Kg6 {[%clk 0:00:27]}  h3 {[%clk 0:00:08]} 70. Kh5 {[%clk 0:00:28]}  h2 {[%clk 0:00:08]} 71. Bxh2 {[%clk 0:00:27]} 1/2-1/2


[Site "https://www.chess.com"]

[Event "Titled Tuesday Blitz March 22 Early 2022"]
[White "Alinasab, Mobina"]
[Black "Krylov, Ivan"]
[WhiteFideId "12528897"]
[BlackFideId "24128066"]
[WhiteElo "2052"]
[BlackElo "2258"]
[Result "1-0"]
[Round "06"]
[TimeControl "180+1"]
[Date "2022.03.22"]
[WhiteClock "0:02:03"]
[BlackClock "0:00:08"]

1. e4 {[%clk 0:03:00]}  c6 {[%clk 0:03:00]} 2. d4 {[%clk 0:03:00]}  d5 {[%clk 0:03:00]} 3. exd5 {[%clk 0:03:01]}  cxd5 {[%clk 0:03:00]} 4. c3 {[%clk 0:03:02]}  Nf6 {[%clk 0:03:00]} 5. Bd3 {[%clk 0:03:03]}  Bg4 {[%clk 0:03:00]} 6. Ne2 {[%clk 0:03:03]}  e6 {[%clk 0:02:59]} 7. Qb3 {[%clk 0:03:02]}  Qb6 {[%clk 0:02:54]} 8. Qxb6 {[%clk 0:03:02]}  axb6 {[%clk 0:02:55]} 9. Nd2 {[%clk 0:03:01]}  Nc6 {[%clk 0:02:54]} 10. O-O {[%clk 0:03:00]}  Bd6 {[%clk 0:02:52]} 11. h3 {[%clk 0:03:00]}  Bh5 {[%clk 0:02:52]} 12. Nb3 {[%clk 0:02:59]}  O-O {[%clk 0:02:44]} 13. Nf4 {[%clk 0:02:56]}  Bg6 {[%clk 0:02:36]} 14. Nxg6 {[%clk 0:02:55]}  hxg6 {[%clk 0:02:37]} 15. Bg5 {[%clk 0:02:54]}  Na5 {[%clk 0:02:34]} 16. Nxa5 {[%clk 0:02:49]}  bxa5 {[%clk 0:02:30]} 17. Bb5 {[%clk 0:02:39]}  Ne4 {[%clk 0:02:21]} 18. Be3 {[%clk 0:02:37]}  Rfd8 {[%clk 0:02:09]} 19. Rfc1 {[%clk 0:02:34]}  a4 {[%clk 0:02:08]} 20. b3 {[%clk 0:02:30]}  a3 {[%clk 0:02:04]} 21. f3 {[%clk 0:02:28]}  Nf6 {[%clk 0:02:01]} 22. c4 {[%clk 0:02:28]}  dxc4 {[%clk 0:01:58]} 23. bxc4 {[%clk 0:02:29]}  Rac8 {[%clk 0:01:54]} 24. Rab1 {[%clk 0:02:28]}  Rc7 {[%clk 0:01:29]} 25. Ba4 {[%clk 0:02:21]}  Rdc8 {[%clk 0:01:20]} 26. c5 {[%clk 0:02:20]}  Be7 {[%clk 0:01:20]} 27. Bf4 {[%clk 0:02:19]}  Nd5 {[%clk 0:01:11]} 28. Bxc7 {[%clk 0:02:18]}  Rxc7 {[%clk 0:01:11]} 29. Rb3 {[%clk 0:02:19]}  Bf6 {[%clk 0:01:08]} 30. Rc4 {[%clk 0:02:11]}  b6 {[%clk 0:01:01]} 31. Rxa3 {[%clk 0:02:09]}  bxc5 {[%clk 0:00:53]} 32. dxc5 {[%clk 0:02:10]}  Ra7 {[%clk 0:00:30]} 33. Rb3 {[%clk 0:02:06]}  Be7 {[%clk 0:00:21]} 34. c6 {[%clk 0:02:05]}  Bd6 {[%clk 0:00:16]} 35. Rb7 {[%clk 0:02:03]}  Rxb7 {[%clk 0:00:09]} 36. cxb7 {[%clk 0:02:04]}  Nc7 {[%clk 0:00:08]} 37. b8=Q+ {[%clk 0:02:03]}  Kh7 {[%clk 0:00:07]} 38. Rxc7 {[%clk 0:02:01]}  Bxc7 {[%clk 0:00:08]} 39. Qxc7 {[%clk 0:02:02]}  f5 {[%clk 0:00:08]} 40. Be8 {[%clk 0:02:02]}  Kh6 {[%clk 0:00:07]} 41. Qf7 {[%clk 0:02:03]}  g5 {[%clk 0:00:08]} 42. Qg6# {[%clk 0:02:03]} 1-0


[Site "https://www.chess.com"]

[Event "Titled Tuesday Blitz March 22 Early 2022"]
[White "Ardila, Oscar Humberto"]
[Black "Jaskolka, Tomasz"]
[WhiteFideId "4404742"]
[BlackFideId "1170791"]
[WhiteElo "1966"]
[BlackElo "2073"]
[Result "0-1"]
[Round "06"]
[TimeControl "180+1"]
[Date "2022.03.22"]
[WhiteClock "0:00:13"]
[BlackClock "0:00:52"]

1. d4 {[%clk 0:02:59]}  e6 {[%clk 0:02:58]} 2. c4 {[%clk 0:02:59]}  Nf6 {[%clk 0:02:58]} 3. Nc3 {[%clk 0:03:00]}  Bb4 {[%clk 0:02:58]} 4. Bd2 {[%clk 0:03:00]}  O-O {[%clk 0:02:58]} 5. Nf3 {[%clk 0:03:01]}  d5 {[%clk 0:02:58]} 6. e3 {[%clk 0:03:01]}  c5 {[%clk 0:02:58]} 7. cxd5 {[%clk 0:03:01]}  exd5 {[%clk 0:02:56]} 8. Be2 {[%clk 0:03:00]}  Nc6 {[%clk 0:02:56]} 9. dxc5 {[%clk 0:03:00]}  Bxc5 {[%clk 0:02:55]} 10. O-O {[%clk 0:03:00]}  Bf5 {[%clk 0:02:54]} 11. Rc1 {[%clk 0:03:00]}  Bb6 {[%clk 0:02:52]} 12. Na4 {[%clk 0:02:58]}  Bc7 {[%clk 0:02:51]} 13. Nc5 {[%clk 0:02:56]}  Qe7 {[%clk 0:02:32]} 14. Nxb7 {[%clk 0:02:52]}  Bxh2+ {[%clk 0:02:32]} 15. Nxh2 {[%clk 0:02:50]}  Qxb7 {[%clk 0:02:32]} 16. b3 {[%clk 0:02:38]}  Rac8 {[%clk 0:02:27]} 17. Nf3 {[%clk 0:02:38]}  Rfd8 {[%clk 0:02:26]} 18. Bc3 {[%clk 0:02:25]}  Ne4 {[%clk 0:02:26]} 19. Bd4 {[%clk 0:02:21]}  Rd6 {[%clk 0:02:18]} 20. Bd3 {[%clk 0:02:10]}  Rh6 {[%clk 0:02:14]} 21. Qc2 {[%clk 0:01:32]}  Nxd4 {[%clk 0:01:54]} 22. Qxc8+ {[%clk 0:01:31]}  Bxc8 {[%clk 0:01:55]} 23. Nxd4 {[%clk 0:01:32]}  Bd7 {[%clk 0:01:47]} 24. Bxe4 {[%clk 0:01:29]}  dxe4 {[%clk 0:01:46]} 25. Rfd1 {[%clk 0:01:26]}  Rd6 {[%clk 0:01:35]} 26. Rc3 {[%clk 0:01:19]}  g6 {[%clk 0:01:32]} 27. Rdc1 {[%clk 0:01:19]}  Kg7 {[%clk 0:01:32]} 28. Rc7 {[%clk 0:01:19]}  Qb4 {[%clk 0:01:24]} 29. R7c4 {[%clk 0:01:16]}  Qd2 {[%clk 0:01:23]} 30. R4c2 {[%clk 0:01:16]}  Qa5 {[%clk 0:01:17]} 31. a4 {[%clk 0:01:13]}  Qg5 {[%clk 0:01:09]} 32. Rc5 {[%clk 0:01:12]}  Qh4 {[%clk 0:01:08]} 33. Rc7 {[%clk 0:01:08]}  Qg5 {[%clk 0:00:58]} 34. R7c5 {[%clk 0:00:49]}  Rd5 {[%clk 0:00:59]} 35. Rc7 {[%clk 0:00:49]}  Bh3 {[%clk 0:00:56]} 36. g3 {[%clk 0:00:46]}  Qh5 {[%clk 0:00:53]} 37. Rxa7 {[%clk 0:00:12]}  Rxd4 {[%clk 0:00:52]} 38. exd4 {[%clk 0:00:13]}  Qf3 {[%clk 0:00:52]} 0-1


[Site "https://www.chess.com"]

[Event "Titled Tuesday Blitz March 22 Early 2022"]
[White "Atakhan, Abtin"]
[Black "Garagulya, Konstantin"]
[WhiteFideId "22502203"]
[BlackFideId "4128931"]
[WhiteElo "2119"]
[BlackElo "2329"]
[Result "1-0"]
[Round "06"]
[TimeControl "180+1"]
[Date "2022.03.22"]
[WhiteClock "0:00:13"]
[BlackClock "0:00:03"]

1. c4 {[%clk 0:02:57]}  e6 {[%clk 0:02:41]} 2. Nf3 {[%clk 0:02:53]}  d5 {[%clk 0:02:40]} 3. g3 {[%clk 0:02:54]}  Nf6 {[%clk 0:02:40]} 4. Bg2 {[%clk 0:02:54]}  Nbd7 {[%clk 0:02:40]} 5. b3 {[%clk 0:02:52]}  b6 {[%clk 0:02:39]} 6. Bb2 {[%clk 0:02:52]}  Bb7 {[%clk 0:02:39]} 7. O-O {[%clk 0:02:52]}  Bd6 {[%clk 0:02:40]} 8. e3 {[%clk 0:02:51]}  O-O {[%clk 0:02:40]} 9. Nc3 {[%clk 0:02:51]}  a6 {[%clk 0:02:40]} 10. Qe2 {[%clk 0:02:51]}  Qe7 {[%clk 0:02:39]} 11. Rfd1 {[%clk 0:02:51]}  c5 {[%clk 0:02:39]} 12. Rac1 {[%clk 0:02:48]}  Rfd8 {[%clk 0:02:38]} 13. cxd5 {[%clk 0:02:48]}  Nxd5 {[%clk 0:02:38]} 14. Ne4 {[%clk 0:02:30]}  Bc7 {[%clk 0:02:26]} 15. a3 {[%clk 0:02:30]}  Rac8 {[%clk 0:02:25]} 16. Nh4 {[%clk 0:02:28]}  f5 {[%clk 0:02:12]} 17. Nc3 {[%clk 0:02:20]}  N7f6 {[%clk 0:01:57]} 18. Na4 {[%clk 0:02:09]}  Bd6 {[%clk 0:01:24]} 19. Nf3 {[%clk 0:01:52]}  b5 {[%clk 0:01:23]} 20. Nc3 {[%clk 0:01:53]}  Nxc3 {[%clk 0:01:21]} 21. dxc3 {[%clk 0:01:45]}  c4 {[%clk 0:01:18]} 22. bxc4 {[%clk 0:01:34]}  Rxc4 {[%clk 0:01:18]} 23. Nd2 {[%clk 0:01:33]}  Ra4 {[%clk 0:01:04]} 24. Bxb7 {[%clk 0:01:26]}  Qxb7 {[%clk 0:01:04]} 25. c4 {[%clk 0:01:21]}  Bxa3 {[%clk 0:01:02]} 26. Bxf6 {[%clk 0:01:21]}  gxf6 {[%clk 0:01:00]} 27. Rb1 {[%clk 0:01:20]}  Bb4 {[%clk 0:00:52]} 28. cxb5 {[%clk 0:01:16]}  Qxb5 {[%clk 0:00:52]} 29. Nc4 {[%clk 0:01:08]}  Rc8 {[%clk 0:00:43]} 30. Qh5 {[%clk 0:00:51]}  Rxc4 {[%clk 0:00:21]} 31. Rd8+ {[%clk 0:00:49]}  Kg7 {[%clk 0:00:21]} 32. Rbd1 {[%clk 0:00:19]}  Be7 {[%clk 0:00:19]} 33. R8d7 {[%clk 0:00:19]}  Qc5 {[%clk 0:00:10]} 34. Qe8 {[%clk 0:00:17]}  Rc1 {[%clk 0:00:05]} 35. Rxe7+ {[%clk 0:00:17]}  Kh6 {[%clk 0:00:04]} 36. Qf8+ {[%clk 0:00:17]}  Kh5 {[%clk 0:00:03]} 37. Rxh7+ {[%clk 0:00:16]}  Kg4 {[%clk 0:00:03]} 38. Qxc5 {[%clk 0:00:13]} 1-0


[Site "https://www.chess.com"]